[Event "Teplice Open 2019"]
[Site "Teplice"]
[Date "2019.06.21"]
[Round "7.32"]
[White "Horak, Martin"]
[Black "Handler, Lukas"]
[Result "1/2-1/2"]
[ECO "D38"]
[WhiteElo "2244"]
[BlackElo "2418"]
[Annotator "NA"]
[PlyCount "133"]
[EventDate "2019.06.15"]
[EventType "swiss"]
[EventCountry "CZE"]
[SourceTitle "playchess.com"]
[Source "ChessBase"]
[SourceQuality "1"]
[TimeControl "40/5400+30:1800+30"]

1. d4 {[%emt 0:00:00]} d5 {[%emt 0:00:00]} 2. c4 {[%emt 0:00:02]} e6 {[%emt 0:00:00]} 3. Nc3 {[%emt 0:00:29]} Bb4 {[%emt 0:00:00]} 4. Nf3 {[%emt 0:00:20]} Nf6 {[%emt 0:00:04]} 5. Qa4+ {[%emt 0:01:48]} Nc6 {[%emt 0:00:07]} 6. e3 {[%emt 0:00:06]} O-O {[%emt 0:01:58]} 7. Qc2 {[%emt 0:01:06]} dxc4 {[%emt 0:06:06]} 8. Bxc4 {[%emt 0:00:15]} Bd6 {[%emt 0:00:30]} 9. O-O {[%emt 0:09:32]} e5 {[%emt 0:04:09]} 10. h3 {[%emt 0:07:56]} Qe7 {[%emt 0:09:40]} 11. dxe5 {[%emt 0:09:42]} Nxe5 {[%emt 0:00:16]} 12. Nxe5 {[%emt 0:00:04]} Qxe5 {[%emt 0:11:46]} 13. f4 {[%emt 0:00:24]} Qc5 {[%emt 0:01:55]} 14. Bd3 {[%emt 0:04:02]} Re8 {[%emt 0:05:33]} 15. Nb5 {[%emt 0:05:41]} Qxc2 {[%emt 0:06:26]} 16. Bxc2 {[%emt 0:00:08]} Bd7 {[%emt 0:03:54]} 17. Nxd6 {[%emt 0:01:01]} cxd6 {[%emt 0:00:08]} 18. Rd1 {[%emt 0:02:13]} Rac8 {[%emt 0:14:21]} 19. Bd3 {[%emt 0:05:40]} Ba4 {[%emt 0:07:58]} 20. b3 {[%emt 0:07:22]} Bc6 {[%emt 0:00:12]} 21. Bc4 {[%emt 0:28:09]} b5 {[%emt 0:08:10]} 22. Be2 {[%emt 0:03:47]} Ne4 {[%emt 0:01:15]} 23. Bf3 {[%emt 0:02:00]} Nc3 {[%emt 0:01:19]} 24. Bxc6 {[%emt 0:06:14]} Rxc6 {[%emt 0:00:10]} 25. Re1 {[%emt 0:00:20]} f5 {[%emt 0:02:16]} 26. Bb2 {[%emt 0:01:09]} Ne4 {[%emt 0:01:59]} 27. Rac1 {[%emt 0:01:19]} Rec8 {[%emt 0:00:23]} 28. Rxc6 {[%emt 0:01:48]} Rxc6 {[%emt 0:00:04]} 29. Rc1 {[%emt 0:00:43]} Rxc1+ {[%emt 0:06:41]} 30. Bxc1 {[%emt 0:00:02]} Kf7 {[%emt 0:00:38]} 31. Kf1 {[%emt 0:00:36]} Ke6 {[%emt 0:01:20]} 32. Bb2 {[%emt 0:00:11]} g6 {[%emt 0:00:06]} 33. Ke2 {[%emt 0:00:42]} Kd5 {[%emt 0:01:03]} 34. Bd4 {[%emt 0:01:06]} a6 {[%emt 0:03:01]} 35. Kd3 {[%emt 0:00:41]} h5 {[%emt 0:01:23]} 36. b4 {[%emt 0:00:36]} g5 {[%emt 0:01:44]} 37. fxg5 {[%emt 0:00:30]} Nxg5 {[%emt 0:00:06]} 38. Bf6 {[%emt 0:00:25]} Nf7 {[%emt 0:01:15]} 39. Be7 {[%emt 0:00:40]} Ne5+ {[%emt 0:00:15]} 40. Kc3 {[%emt 0:00:20]} Ng6 {[%emt 0:00:44]} 41. Bg5 {[%emt 0:06:57]} Ke4 {[%emt 0:00:02]} 42. Kd2 {[%emt 0:00:25]} Ne5 {[%emt 0:07:05]} 43. Bf4 {[%emt 0:00:54]} Nc4+ {[%emt 0:00:17]} 44. Ke2 {[%emt 0:00:05]} d5 {[%emt 0:00:17]} 45. Bg5 {[%emt 0:01:06]} Nb2 {[%emt 0:05:53]} 46. Kd2 {[%emt 0:01:15]} Nd3 {[%emt 0:00:30]} 47. Be7 {[%emt 0:00:47]} Ne5 {[%emt 0:02:26]} 48. Ke2 {[%emt 0:00:29]} Nd3 {[%emt 0:03:56]} 49. Kd2 {[%emt 0:00:20]} d4 {[%emt 0:03:51]} 50. exd4 {[%emt 0:00:34]} Kxd4 {[%emt 0:04:19]} 51. Bd6 {[%emt 0:01:19]} Kc4 {[%emt 0:04:20]} 52. Ke3 {[%emt 0:02:16]} Nxb4 {[%emt 0:01:11]} 53. Kf4 {[%emt 0:00:04]} Nxa2 {[%emt 0:00:39]} 54. Kxf5 {[%emt 0:00:05]} b4 {[%emt 0:01:36]} 55. g4 {[%emt 0:00:05]} hxg4 {[%emt 0:00:17]} 56. hxg4 {[%emt 0:00:03]} b3 {[%emt 0:00:43]} 57. Ba3 {[%emt 0:00:11]} Nc3 {[%emt 0:00:14]} 58. g5 {[%emt 0:00:12]} Nd5 {[%emt 0:00:16]} 59. Ke6 {[%emt 0:01:27]} a5 {[%emt 0:00:52]} 60. Kd6 {[%emt 0:00:18]} Nf4 {[%emt 0:01:31]} 61. Ke5 {[%emt 0:00:15]} Nh5 {[%emt 0:00:33]} 62. g6 {[%emt 0:00:26]} Kc3 {[%emt 0:00:04]} 63. Kf5 {[%emt 0:00:22]} b2 {[%emt 0:00:05]} 64. Bxb2+ {[%emt 0:00:05]} Kxb2 {[%emt 0:00:02]} 65. Kg5 {[%emt 0:00:05]} Ng7 {[%emt 0:00:38]} 66. Kf6 {[%emt 0:00:04]} Ne8+ {[%emt 0:00:36]} 67. Ke7 {[%emt 0:00:06]} 1/2-1/2

[Event "Teplice Open 2019"]
[Site "Teplice"]
[Date "2019.06.21"]
[Round "7.33"]
[White "Halvax, Georg"]
[Black "Kucera, Petr"]
[Result "1/2-1/2"]
[ECO "D02"]
[WhiteElo "2408"]
[BlackElo "2248"]
[Annotator "ChessBase"]
[PlyCount "174"]
[EventDate "2019.06.15"]
[EventType "swiss"]
[EventCountry "CZE"]
[SourceTitle "playchess.com"]
[Source "ChessBase"]
[SourceQuality "1"]
[TimeControl "40/5400+30:1800+30"]

1. d4 {[%emt 0:00:00]} d5 {[%emt 0:00:00]} 2. Nf3 {[%emt 0:00:00]} c5 {[%emt 0:00:31]} 3. e3 {[%emt 0:00:12]} Nc6 {[%emt 0:03:10]} 4. a3 {[%emt 0:01:01]} cxd4 {[%emt 0:02:43]} 5. exd4 {[%emt 0:00:13]} Bg4 {[%emt 0:01:15]} 6. Bb5 {[%emt 0:02:13]} Nf6 {[%emt 0:04:55]} 7. Qd3 {[%emt 0:01:42]} Bxf3 {[%emt 0:05:50]} 8. Qxf3 {[%emt 0:00:09]} e6 {[%emt 0:09:04]} 9. O-O {[%emt 0:00:49]} Be7 {[%emt 0:01:52]} 10. c3 {[%emt 0:00:47]} O-O {[%emt 0:00:34]} 11. Re1 {[%emt 0:05:48]} Qa5 {[%emt 0:02:12]} 12. Qe2 {[%emt 0:03:45]} a6 {[%emt 0:02:31]} 13. Bd3 {[%emt 0:00:21]} Rfe8 {[%emt 0:00:40]} 14. Bf4 {[%emt 0:06:17]} Bf8 {[%emt 0:21:35]} 15. Nd2 {[%emt 0:01:38]} g6 {[%emt 0:00:25]} 16. Nf3 {[%emt 0:05:56]} Nh5 {[%emt 0:00:39]} 17. Qd2 {[%emt 0:05:18]} Qd8 {[%emt 0:09:08]} 18. Bg5 {[%emt 0:07:56]} Be7 {[%emt 0:00:59]} 19. Bh6 {[%emt 0:05:51]} Bf8 {[%emt 0:04:24]} 20. Ne5 {[%emt 0:08:22]} Bxh6 {[%emt 0:04:39]} 21. Qxh6 {[%emt 0:00:43]} Qf6 {[%emt 0:00:36]} 22. Ng4 {[%emt 0:06:32]} Qg7 {[%emt 0:02:06]} 23. Qg5 {[%emt 0:01:49]} f6 {[%emt 0:01:17]} 24. Qh4 {[%emt 0:00:57]} f5 {[%emt 0:01:58]} 25. Ne5 {[%emt 0:01:24]} Qf6 {[%emt 0:02:36]} 26. Qh3 {[%emt 0:04:03]} Nxe5 {[%emt 0:06:15]} 27. Rxe5 {[%emt 0:00:49]} Rac8 {[%emt 0:07:38]} 28. Rae1 {[%emt 0:00:25]} Ng7 {[%emt 0:00:12]} 29. Qh6 {[%emt 0:01:34]} Rf8 {[%emt 0:01:04]} 30. f4 {[%emt 0:02:56]} Rc6 {[%emt 0:00:29]} 31. R1e3 {[%emt 0:02:19]} Ne8 {[%emt 0:01:17]} 32. Be2 {[%emt 0:02:16]} Nc7 {[%emt 0:02:27]} 33. Bf3 {[%emt 0:02:52]} Rd6 {[%emt 0:00:27]} 34. h4 {[%emt 0:01:35]} Rf7 {[%emt 0:00:49]} 35. h5 {[%emt 0:01:45]} Rg7 {[%emt 0:00:22]} 36. g3 {[%emt 0:02:35]} Qd8 {[%emt 0:00:39]} 37. Kg2 {[%emt 0:01:30]} g5 {[%emt 0:00:38]} 38. fxg5 {[%emt 0:03:48]} Qxg5 {[%emt 0:00:05]} 39. Qxg5 {[%emt 0:00:06]} Rxg5 {[%emt 0:00:02]} 40. g4 {[%emt 0:00:32]} Rg7 {[%emt 0:00:52]} 41. Kg3 {[%emt 0:31:02]} Kf7 {[%emt 0:30:38]} 42. Kf4 {[%emt 0:01:29]} fxg4 {[%emt 0:00:00]} 43. Bxg4 {[%emt 0:00:00]} h6 {[%emt 0:00:00]} 44. Re2 {[%emt 0:00:00]} a5 {[%emt 0:00:00]} 45. a4 {[%emt 0:00:00]} Rb6 {[%emt 0:00:00]} 46. Kg3 {[%emt 0:00:00]} Kf6 {[%emt 0:00:00]} 47. Kh4 {[%emt 0:00:00]} Rd6 {[%emt 0:00:00]} 48. R5e3 {[%emt 0:00:00]} Rf7 {[%emt 0:00:00]} 49. Bh3 {[%emt 0:00:00]} Ke7 {[%emt 0:00:00]} 50. Rg2 {[%emt 0:00:00]} Rf4+ {[%emt 0:00:00]} 51. Kg3 {[%emt 0:00:00]} Rf6 {[%emt 0:00:00]} 52. Kh2 {[%emt 0:00:00]} Rd8 {[%emt 0:00:00]} 53. Rg7+ {[%emt 0:00:00]} Kd6 {[%emt 0:00:00]} 54. b3 {[%emt 0:00:00]} Rdf8 {[%emt 0:00:00]} 55. c4 {[%emt 0:00:00]} b6 {[%emt 0:00:00]} 56. Bg4 {[%emt 0:03:14]} R8f7 {[%emt 0:04:46]} 57. Rg6 {[%emt 0:01:53]} Rxg6 {[%emt 0:02:10]} 58. hxg6 {[%emt 0:00:02]} Rf6 {[%emt 0:00:25]} 59. Bh5 {[%emt 0:00:19]} Ne8 {[%emt 0:00:12]} 60. Rf3 {[%emt 0:01:41]} Rxf3 {[%emt 0:01:42]} 61. Bxf3 {[%emt 0:00:04]} Ng7 {[%emt 0:00:43]} 62. Kg3 {[%emt 0:00:30]} dxc4 {[%emt 0:00:51]} 63. bxc4 {[%emt 0:00:07]} e5 {[%emt 0:00:20]} 64. d5 {[%emt 0:00:24]} Ke7 {[%emt 0:00:32]} 65. Bg4 {[%emt 0:07:05]} Ne8 {[%emt 0:00:13]} 66. Kh4 {[%emt 0:01:49]} Kf6 {[%emt 0:00:02]} 67. Kh5 {[%emt 0:00:05]} Kg7 {[%emt 0:00:19]} 68. Bf5 {[%emt 0:00:07]} Nd6 {[%emt 0:00:47]} 69. Bd3 {[%emt 0:00:01]} e4 {[%emt 0:01:08]} 70. Be2 {[%emt 0:00:15]} Nf5 {[%emt 0:00:35]} 71. Kg4 {[%emt 0:00:24]} Kxg6 {[%emt 0:00:05]} 72. Kf4 {[%emt 0:00:04]} Kf6 {[%emt 0:00:23]} 73. Kxe4 {[%emt 0:00:16]} Nd6+ {[%emt 0:01:00]} 74. Kd4 {[%emt 0:00:45]} Nb7 {[%emt 0:00:17]} 75. Bh5 {[%emt 0:00:42]} Nc5 {[%emt 0:00:18]} 76. Be8 {[%emt 0:00:18]} Ke7 {[%emt 0:00:12]} 77. Bb5 {[%emt 0:00:14]} Kd6 {[%emt 0:00:06]} 78. Ke3 {[%emt 0:00:07]} Ke5 {[%emt 0:00:26]} 79. Kf3 {[%emt 0:00:01]} Nb7 {[%emt 0:00:34]} 80. Kg4 {[%emt 0:00:18]} Nd6 {[%emt 0:00:25]} 81. Ba6 {[%emt 0:00:14]} Kf6 {[%emt 0:00:32]} 82. Kh5 {[%emt 0:00:15]} Kg7 {[%emt 0:00:28]} 83. Bb5 {[%emt 0:00:08]} Ne4 {[%emt 0:01:18]} 84. Kg4 {[%emt 0:01:14]} Kf6 {[%emt 0:00:04]} 85. Kh5 {[%emt 0:00:05]} Kg7 {[%emt 0:00:05]} 86. Kg4 {[%emt 0:01:31]} Nd6 {[%emt 0:00:35]} 87. Kh5 {[%emt 0:00:12]} Ne4 {[%emt 0:00:13]} 1/2-1/2

[Event "Teplice Open 2019"]
[Site "Teplice"]
[Date "2019.06.21"]
[Round "7.34"]
[White "Navrotescu, Andreea-Cristiana"]
[Black "Mikes, Jan"]
[Result "1-0"]
[ECO "E70"]
[WhiteElo "2233"]
[BlackElo "2404"]
[Annotator "NA"]
[PlyCount "71"]
[EventDate "2019.06.15"]
[EventType "swiss"]
[EventCountry "CZE"]
[SourceTitle "playchess.com"]
[Source "ChessBase"]
[SourceQuality "1"]
[TimeControl "40/5400+30:1800+30"]

1. d4 {[%emt 0:00:00]} Nf6 {[%emt 0:00:00]} 2. c4 {[%emt 0:00:00]} g6 {[%emt 0:00:00]} 3. Nc3 {[%emt 0:00:00]} Bg7 {[%emt 0:00:00]} 4. e4 {[%emt 0:00:00]} d6 {[%emt 0:00:00]} 5. Nge2 {[%emt 0:00:00]} O-O {[%emt 0:00:11]} 6. Ng3 {[%emt 0:00:04]} e5 {[%emt 0:03:47]} 7. d5 {[%emt 0:00:05]} a5 {[%emt 0:00:28]} 8. Be2 {[%emt 0:00:21]} Na6 {[%emt 0:00:34]} 9. h4 {[%emt 0:00:05]} h6 {[%emt 0:12:20]} 10. Be3 {[%emt 0:08:39]} Kh7 {[%emt 0:00:39]} 11. f3 {[%emt 0:03:51]} c6 {[%emt 0:04:00]} 12. Qd2 {[%emt 0:06:11]} cxd5 {[%emt 0:00:42]} 13. exd5 {[%emt 0:01:02]} Nc5 {[%emt 0:14:59]} 14. h5 {[%emt 0:03:14]} g5 {[%emt 0:00:48]} 15. Bd3+ {[%emt 0:25:47]} Nxd3+ {[%emt 0:02:07]} 16. Qxd3+ {[%emt 0:00:02]} Kg8 {[%emt 0:00:15]} 17. O-O-O {[%emt 0:10:46]} Nh7 {[%emt 0:01:49]} 18. Nf5 {[%emt 0:01:03]} Bxf5 {[%emt 0:01:04]} 19. Qxf5 {[%emt 0:00:02]} Qc8 {[%emt 0:00:15]} 20. Qxc8 {[%emt 0:01:06]} Rfxc8 {[%emt 0:15:37]} 21. b3 {[%emt 0:00:11]} Nf6 {[%emt 0:04:36]} 22. a4 {[%emt 0:00:57]} e4 {[%emt 0:19:24]} 23. Nb5 {[%emt 0:20:52]} Ra6 {[%emt 0:07:09]} 24. Kd2 {[%emt 0:05:27]} exf3 {[%emt 0:01:11]} 25. gxf3 {[%emt 0:00:02]} Nd7 {[%emt 0:00:12]} 26. f4 {[%emt 0:01:02]} g4 {[%emt 0:02:04]} 27. f5 {[%emt 0:00:07]} Ne5 {[%emt 0:01:17]} 28. Bf4 {[%emt 0:02:33]} Kh7 {[%emt 0:00:15]} 29. Rhf1 {[%emt 0:02:28]} Bf6 {[%emt 0:00:13]} 30. Kc2 {[%emt 0:01:39]} Rb6 {[%emt 0:03:01]} 31. Be3 {[%emt 0:00:50]} Ra6 {[%emt 0:00:04]} 32. Rg1 {[%emt 0:00:56]} Nxc4 {[%emt 0:05:37]} 33. bxc4 {[%emt 0:00:05]} Rxc4+ {[%emt 0:00:03]} 34. Kd3 {[%emt 0:00:55]} Rxa4 {[%emt 0:01:28]} 35. Nc7 {[%emt 0:00:05]} Ra3+ {[%emt 0:00:25]} 36. Ke4 {[%emt 0:00:45]} 1-0

[Event "Teplice Open 2019"]
[Site "Teplice"]
[Date "2019.06.21"]
[Round "7.35"]
[White "Kaasen, Tor Fredrik"]
[Black "Kucera, Petr"]
[Result "1/2-1/2"]
[ECO "A21"]
[WhiteElo "2395"]
[BlackElo "2248"]
[Annotator "NA"]
[PlyCount "147"]
[EventDate "2019.06.15"]
[EventType "swiss"]
[EventCountry "CZE"]
[SourceTitle "playchess.com"]
[Source "ChessBase"]
[SourceQuality "1"]
[TimeControl "40/5400+30:1800+30"]

1. c4 {[%emt 0:03:37]} e5 {[%emt 0:00:06]} 2. Nc3 {[%emt 0:00:39]} d6 {[%emt 0:01:24]} 3. Nf3 {[%emt 0:02:47]} f5 {[%emt 0:02:44]} 4. d4 {[%emt 0:00:58]} e4 {[%emt 0:00:40]} 5. Ng5 {[%emt 0:00:13]} Be7 {[%emt 0:01:08]} 6. Nh3 {[%emt 0:00:33]} Nf6 {[%emt 0:02:11]} 7. g3 {[%emt 0:01:53]} O-O {[%emt 0:02:30]} 8. Bg2 {[%emt 0:00:14]} c6 {[%emt 0:02:01]} 9. O-O {[%emt 0:05:51]} Na6 {[%emt 0:03:57]} 10. d5 {[%emt 0:00:59]} c5 {[%emt 0:01:23]} 11. b3 {[%emt 0:02:13]} Nc7 {[%emt 0:04:04]} 12. Bb2 {[%emt 0:04:32]} Ng4 {[%emt 0:08:55]} 13. Qd2 {[%emt 0:06:20]} Bf6 {[%emt 0:01:21]} 14. Kh1 {[%emt 0:05:20]} Rb8 {[%emt 0:10:42]} 15. f3 {[%emt 0:01:03]} exf3 {[%emt 0:04:33]} 16. exf3 {[%emt 0:00:22]} Ne5 {[%emt 0:01:47]} 17. Rfe1 {[%emt 0:00:56]} a6 {[%emt 0:10:08]} 18. Nf4 {[%emt 0:11:21]} Bg5 {[%emt 0:10:30]} 19. Nce2 {[%emt 0:08:15]} b5 {[%emt 0:05:24]} 20. cxb5 {[%emt 0:03:06]} axb5 {[%emt 0:00:42]} 21. Qc2 {[%emt 0:00:19]} Bb7 {[%emt 0:17:57]} 22. Rad1 {[%emt 0:00:36]} Ra8 {[%emt 0:05:43]} 23. a3 {[%emt 0:01:06]} Bf6 {[%emt 0:00:46]} 24. Nh5 {[%emt 0:10:18]} Nd7 {[%emt 0:00:49]} 25. Nxf6+ {[%emt 0:02:23]} Nxf6 {[%emt 0:00:06]} 26. Qxf5 {[%emt 0:01:06]} Nfxd5 {[%emt 0:00:23]} 27. Qd3 {[%emt 0:01:00]} Qg5 {[%emt 0:00:21]} 28. f4 {[%emt 0:01:07]} Qh5 {[%emt 0:00:59]} 29. Nc3 {[%emt 0:02:33]} Nxc3 {[%emt 0:00:26]} 30. Qxc3 {[%emt 0:00:17]} Bxg2+ {[%emt 0:00:38]} 31. Kxg2 {[%emt 0:00:08]} Rf7 {[%emt 0:00:31]} 32. Rxd6 {[%emt 0:00:27]} Ne8 {[%emt 0:00:31]} 33. Rde6 {[%emt 0:02:19]} Nf6 {[%emt 0:00:18]} 34. R6e5 {[%emt 0:01:32]} Qg4 {[%emt 0:00:25]} 35. Qxc5 {[%emt 0:02:10]} Rc8 {[%emt 0:00:30]} 36. Qf2 {[%emt 0:00:47]} Rfc7 {[%emt 0:00:46]} 37. R1e2 {[%emt 0:01:21]} Qd7 {[%emt 0:00:36]} 38. Rg5 {[%emt 0:01:04]} h6 {[%emt 0:00:19]} 39. Bxf6 {[%emt 0:13:06]} hxg5 {[%emt 0:00:16]} 40. Be5 {[%emt 0:00:03]} Qd5+ {[%emt 0:00:51]} 41. Qf3 {[%emt 0:32:48]} Qxf3+ {[%emt 0:03:35]} 42. Kxf3 {[%emt 0:00:00]} Rc2 {[%emt 0:00:58]} 43. Re4 {[%emt 0:00:00]} gxf4 {[%emt 0:02:17]} 44. gxf4 {[%emt 0:00:00]} Rxh2 {[%emt 0:17:45]} 45. Rb4 {[%emt 0:00:00]} Ra8 {[%emt 0:05:18]} 46. Rxb5 {[%emt 0:00:00]} Rxa3 {[%emt 0:00:09]} 47. Ke4 {[%emt 0:00:00]} Ra7 {[%emt 0:03:28]} 48. b4 {[%emt 0:00:00]} Kf7 {[%emt 0:00:34]} 49. Rb8 {[%emt 0:00:00]} Rd2 {[%emt 0:00:26]} 50. b5 {[%emt 0:00:00]} Ra4+ {[%emt 0:00:21]} 51. Kf5 {[%emt 0:00:00]} g6+ {[%emt 0:00:06]} 52. Kg4 {[%emt 0:00:00]} Rd5 {[%emt 0:00:24]} 53. Rb7+ {[%emt 0:00:00]} Ke6 {[%emt 0:00:44]} 54. Rb6+ {[%emt 0:00:00]} Kf7 {[%emt 0:00:38]} 55. Kg5 {[%emt 0:00:00]} Rb4 {[%emt 0:00:29]} 56. Rf6+ {[%emt 0:00:00]} Ke7 {[%emt 0:00:48]} 57. Rxg6 {[%emt 0:00:00]} Rbxb5 {[%emt 0:00:34]} 58. Kf5 {[%emt 0:00:00]} Rxe5+ {[%emt 0:00:28]} 59. fxe5 {[%emt 0:00:00]} Rb1 {[%emt 0:00:27]} 60. Rg7+ {[%emt 0:00:00]} Kf8 {[%emt 0:00:30]} 61. Ra7 {[%emt 0:00:00]} Rb6 {[%emt 0:00:15]} 62. Rd7 {[%emt 0:00:00]} Ke8 {[%emt 0:00:12]} 63. Rh7 {[%emt 0:00:00]} Ra6 {[%emt 0:00:16]} 64. Rc7 {[%emt 0:00:00]} Rb6 {[%emt 0:00:08]} 65. Ke4 {[%emt 0:00:00]} Ra6 {[%emt 0:00:38]} 66. Rc5 {[%emt 0:00:00]} Rb6 {[%emt 0:00:25]} 67. Kd5 {[%emt 0:00:00]} Ra6 {[%emt 0:00:15]} 68. Rb5 {[%emt 0:00:00]} Ke7 {[%emt 0:00:31]} 69. Rb7+ {[%emt 0:00:00]} Ke8 {[%emt 0:00:07]} 70. Ke4 {[%emt 0:00:00]} Rc6 {[%emt 0:00:13]} 71. Kf5 {[%emt 0:00:00]} Ra6 {[%emt 0:00:05]} 72. Rg7 {[%emt 0:00:00]} Rb6 {[%emt 0:00:23]} 73. Rg6 {[%emt 0:00:00]} Rxg6 {[%emt 0:00:19]} 74. Ke4 {[%emt 0:00:10]} 1/2-1/2

[Event "Teplice Open 2019"]
[Site "Teplice"]
[Date "2019.06.21"]
[Round "7.36"]
[White "Lyell, Mark"]
[Black "Di Nicolantonio, Lucas"]
[Result "1/2-1/2"]
[ECO "A07"]
[WhiteElo "2222"]
[BlackElo "2379"]
[Annotator "NA"]
[PlyCount "90"]
[EventDate "2019.06.15"]
[EventType "swiss"]
[EventCountry "CZE"]
[SourceTitle "playchess.com"]
[Source "ChessBase"]
[SourceQuality "1"]
[TimeControl "40/5400+30:1800+30"]

1. Nf3 {[%emt 0:00:00]} d5 {[%emt 0:00:25]} 2. b3 {[%emt 0:00:00]} Bf5 {[%emt 0:02:19]} 3. Bb2 {[%emt 0:00:23]} e6 {[%emt 0:00:27]} 4. g3 {[%emt 0:02:32]} Nf6 {[%emt 0:02:00]} 5. Bg2 {[%emt 0:00:34]} Be7 {[%emt 0:01:20]} 6. d3 {[%emt 0:00:35]} h6 {[%emt 0:00:41]} 7. O-O {[%emt 0:00:31]} O-O {[%emt 0:00:29]} 8. Nbd2 {[%emt 0:00:12]} c6 {[%emt 0:03:34]} 9. Qe1 {[%emt 0:05:14]} a5 {[%emt 0:01:42]} 10. a3 {[%emt 0:01:23]} Bh7 {[%emt 0:03:22]} 11. Kh1 {[%emt 0:01:16]} c5 {[%emt 0:07:17]} 12. a4 {[%emt 0:08:37]} Nc6 {[%emt 0:01:38]} 13. Ne5 {[%emt 0:00:21]} Nb4 {[%emt 0:13:47]} 14. Rc1 {[%emt 0:01:18]} Nd7 {[%emt 0:00:59]} 15. Nxd7 {[%emt 0:05:20]} Qxd7 {[%emt 0:00:06]} 16. Nf3 {[%emt 0:02:21]} Rfd8 {[%emt 0:11:31]} 17. Ne5 {[%emt 0:02:30]} Qe8 {[%emt 0:00:12]} 18. e4 {[%emt 0:14:09]} f6 {[%emt 0:17:07]} 19. Ng4 {[%emt 0:01:30]} dxe4 {[%emt 0:00:17]} 20. Bxe4 {[%emt 0:11:07]} Bxe4+ {[%emt 0:04:07]} 21. Qxe4 {[%emt 0:00:27]} Qc6 {[%emt 0:00:34]} 22. Qxc6 {[%emt 0:02:37]} Nxc6 {[%emt 0:00:07]} 23. Rce1 {[%emt 0:01:16]} Nd4 {[%emt 0:05:37]} 24. Bxd4 {[%emt 0:00:30]} cxd4 {[%emt 0:00:08]} 25. f4 {[%emt 0:02:09]} Ra6 {[%emt 0:05:21]} 26. h3 {[%emt 0:05:53]} Rc8 {[%emt 0:04:44]} 27. Re2 {[%emt 0:00:29]} Rac6 {[%emt 0:00:10]} 28. Rff2 {[%emt 0:00:10]} Ba3 {[%emt 0:01:02]} 29. Nh2 {[%emt 0:05:19]} Bc1 {[%emt 0:00:20]} 30. Nf1 {[%emt 0:00:34]} Kf7 {[%emt 0:03:12]} 31. g4 {[%emt 0:01:28]} g6 {[%emt 0:03:39]} 32. Kh2 {[%emt 0:04:21]} f5 {[%emt 0:00:21]} 33. Kg3 {[%emt 0:01:08]} Rc5 {[%emt 0:01:00]} 34. gxf5 {[%emt 0:04:01]} exf5 {[%emt 0:04:45]} 35. h4 {[%emt 0:01:52]} Kf6 {[%emt 0:01:07]} 36. Nd2 {[%emt 0:05:02]} Bxd2 {[%emt 0:00:19]} 37. Rxd2 {[%emt 0:00:01]} g5 {[%emt 0:01:53]} 38. hxg5+ {[%emt 0:01:00]} hxg5 {[%emt 0:00:03]} 39. fxg5+ {[%emt 0:04:47]} Kxg5 {[%emt 0:00:05]} 40. Rde2 {[%emt 0:01:27]} Kf6 {[%emt 0:01:30]} 41. Rh2 {[%emt 0:31:55]} Rg8+ {[%emt 0:07:11]} 42. Kf3 {[%emt 0:00:00]} Rg1 {[%emt 0:00:55]} 43. Rh6+ {[%emt 0:00:00]} Kg5 {[%emt 0:02:56]} 44. Ree6 {[%emt 0:00:00]} Rf1+ {[%emt 0:00:58]} 45. Kg3 {[%emt 0:00:00]} Rg1+ {[%emt 0:03:00]} 1/2-1/2

[Event "Teplice Open 2019"]
[Site "Teplice"]
[Date "2019.06.21"]
[Round "7.37"]
[White "Richterova, Natasa"]
[Black "Pajeken, Jakob Leon"]
[Result "0-1"]
[ECO "C54"]
[WhiteElo "2190"]
[BlackElo "2359"]
[Annotator "NA"]
[PlyCount "114"]
[EventDate "2019.06.15"]
[EventType "swiss"]
[EventCountry "CZE"]
[SourceTitle "playchess.com"]
[Source "ChessBase"]
[SourceQuality "1"]
[TimeControl "40/5400+30:1800+30"]

1. e4 {[%emt 0:00:00]} e5 {[%emt 0:00:00]} 2. Nf3 {[%emt 0:00:00]} Nc6 {[%emt 0:00:00]} 3. Bc4 {[%emt 0:00:00]} Bc5 {[%emt 0:00:00]} 4. c3 {[%emt 0:00:00]} Nf6 {[%emt 0:00:00]} 5. d4 {[%emt 0:00:00]} exd4 {[%emt 0:00:00]} 6. cxd4 {[%emt 0:00:03]} Bb4+ {[%emt 0:00:01]} 7. Bd2 {[%emt 0:00:13]} Nxe4 {[%emt 0:00:06]} 8. Bxb4 {[%emt 0:00:34]} Nxb4 {[%emt 0:00:05]} 9. Bxf7+ {[%emt 0:00:16]} Kxf7 {[%emt 0:00:05]} 10. Qb3+ {[%emt 0:00:08]} d5 {[%emt 0:00:05]} 11. Ne5+ {[%emt 0:00:16]} Ke6 {[%emt 0:00:05]} 12. Qxb4 {[%emt 0:00:05]} Qf8 {[%emt 0:00:04]} 13. Qxf8 {[%emt 0:00:07]} Rxf8 {[%emt 0:00:01]} 14. f3 {[%emt 0:02:43]} c5 {[%emt 0:00:05]} 15. Nd3 {[%emt 0:14:56]} cxd4 {[%emt 0:08:50]} 16. Na3 {[%emt 0:02:44]} Nd6 {[%emt 0:07:10]} 17. Nc2 {[%emt 0:01:42]} Nf5 {[%emt 0:10:34]} 18. g4 {[%emt 0:03:42]} Nh4 {[%emt 0:00:27]} 19. Nxd4+ {[%emt 0:00:06]} Kd6 {[%emt 0:00:11]} 20. O-O {[%emt 0:01:29]} Bd7 {[%emt 0:01:20]} 21. h3 {[%emt 0:02:10]} Rae8 {[%emt 0:01:25]} 22. Kf2 {[%emt 0:15:49]} g5 {[%emt 0:13:59]} 23. Rae1 {[%emt 0:03:48]} a6 {[%emt 0:39:50]} 24. Kg3 {[%emt 0:10:24]} Ng6 {[%emt 0:01:19]} 25. Rxe8 {[%emt 0:08:26]} Rxe8 {[%emt 0:00:06]} 26. f4 Nxf4 27. Nxf4 {[%emt 0:08:32]} Re3+ {[%emt 0:06:24]} 28. Nf3 {[%emt 0:05:07]} gxf4+ {[%emt 0:00:07]} 29. Kxf4 {[%emt 0:00:11]} Re2 {[%emt 0:00:33]} 30. Rb1 {[%emt 0:01:04]} h6 {[%emt 0:00:53]} 31. a3 {[%emt 0:00:00]} Re4+ {[%emt 0:01:19]} 32. Kg3 {[%emt 0:00:06]} d4 {[%emt 0:00:20]} 33. Rd1 {[%emt 0:01:02]} Kd5 {[%emt 0:00:08]} 34. Kh4 {[%emt 0:09:40]} Rf4 {[%emt 0:00:35]} 35. Kg3 {[%emt 0:00:06]} Re4 {[%emt 0:00:05]} 36. Kh4 {[%emt 0:00:04]} Bb5 {[%emt 0:01:27]} 37. Rd2 {[%emt 0:00:28]} d3 {[%emt 0:11:32]} 38. Rd1 {[%emt 0:11:52]} Re3 {[%emt 0:00:00]} 39. Nd2 {[%emt 0:00:16]} Kd4 {[%emt 0:00:00]} 40. Nb3+ {[%emt 0:00:16]} Ke5 {[%emt 0:00:00]} 41. Nd2 {[%emt 0:30:25]} Re2 {[%emt 0:22:18]} 42. Kg3 {[%emt 0:00:16]} Bc6 {[%emt 0:21:00]} 43. Nc4+ {[%emt 0:00:00]} Kd4 {[%emt 0:02:03]} 44. Nd6 {[%emt 0:02:19]} d2 {[%emt 0:03:21]} 45. b3 {[%emt 0:00:00]} Kd3 46. Nc4 {[%emt 0:01:13]} Kc2 {[%emt 0:01:28]} 47. Rxd2+ {[%emt 0:00:06]} Rxd2 {[%emt 0:00:04]} 48. Nxd2 {[%emt 0:00:03]} Kxd2 {[%emt 0:00:08]} 49. Kf4 {[%emt 0:00:08]} Kc3 {[%emt 0:00:32]} 50. b4 {[%emt 0:00:00]} Kb3 {[%emt 0:00:00]} 51. Kf5 {[%emt 0:01:06]} Be8 {[%emt 0:00:00]} 52. Kf6 {[%emt 0:00:00]} Kxa3 {[%emt 0:00:00]} 53. Ke7 {[%emt 0:00:00]} Bg6 {[%emt 0:00:00]} 54. Kf6 {[%emt 0:00:10]} Bd3 {[%emt 0:00:10]} 55. Kg7 {[%emt 0:00:03]} Kxb4 {[%emt 0:00:06]} 56. Kxh6 {[%emt 0:00:02]} a5 {[%emt 0:01:10]} 57. g5 {[%emt 0:00:04]} a4 {[%emt 0:00:00]} 0-1